Workbook

Sheet Início
B1: ACERCA DESTE MODELO
B2: Crie um Plano Financeiro Inicial para uma Empresa utilizando este modelo.
B3: Obtenha uma visão geral do plano financeiro na folha de cálculo Descrição Geral.
B4: Utilize as folhas de cálculo Modelo de Custos de Arranque e Modelo de Demonstração de Resultados Financeiros para manter em conta os Custos Iniciais e os Lucros e Perdas.
B5: As folhas de cálculo Exemplo de Custos de Arranque e Exemplo de Demonstração de Resultados Financeiros contêm dados de exemplo nas tabelas.
B6: Nota:
B7: existem instruções adicionais na coluna A em todas as folhas de cálculo. O texto encontra-se intencionalmente oculto. Para remover o texto, selecione a coluna A e, em seguida, selecione Eliminar. Para mostrar o texto, selecione a coluna A e, em seguida, mude a cor do tipo de letra.
B8: Para saber mais sobre as tabelas, prima Shift+F10 numa tabela, selecione a opção TABELA e, em seguida, selecione TEXTO ALTERNATIVO.

Sheet Descrição Geral
B1: PLANO FINANCEIRO INICIAL DE NEGÓCIOS
B2: A criação de um plano financeiro é o passo em que o planeamento de uma empresa toma forma. Uma vez identificado o seu produto, o mercado alvo e os clientes alvo, para além dos preços, está pronto para começar a prever custos, vendas e lucros. Estes itens, juntamente com os seus pressupostos, irão ajudá-lo a estimar a sua previsão de vendas. O outro lado do negócio serão as despesas em que espera incorrer. É importante tê-las em conta de forma contínua para saber quando é rentável. Também é importante, quando inicia o seu negócio, saber que despesas terá de financiar antes das vendas a clientes e do dinheiro gerado ser recebido.
B3: Custos Iniciais Projetados: A tabela no separador seguinte, Modelo de Custos Iniciais, fornece um modelo em branco com algumas instruções para começar. O separador seguinte, Exemplo de Custos Iniciais, apresenta um exemplo itens de custos regulares e pontuais dos quais pode necessitar para abrir o seu negócio. Muitas empresas são cobram a crédito ao longo do tempo e não têm entradas imediatas de dinheiro. É importante estimar a altura em que o dinheiro começará a entrar na empresa ao criar um pressuposto do número de meses de itens recorrentes e de despesas pontuais que terá de financiar com poupanças ou com o investimento inicial.
B4: Modelo de Lucros e Perdas Projetado: No separador com a etiqueta Modelo de Demonstração de Resultados Financeiros, encontrará um modelo em branco para criar Previsões de Vendas e um Modelo de Lucros e Perdas. O separador seguinte, Exemplo de Demonstração de Resultados Financeiros, apresenta um exemplo estimado das previsões de uma pequena empresa para os primeiros 12 meses de operações. A parte superior da tabela em cada modelo mostra as vendas estimadas e o lucro bruto. Este é um bom local para começar a criar a sua previsão de vendas. A secção seguinte, abaixo, lista as despesas recorrentes estimadas para os mesmos meses. Estes devem ser consistentes com os custos iniciais estimados que completou na secção anterior. Na parte inferior deste modelo, começará a ver quando se poderá tornar rentável e que itens de despesa têm o maior impacto na sua rentabilidade.
B5: Monitorize os pressupostos que faz ao estimar as Receitas e o Custo dos Bens Vendidos. No caso de empresas que ainda não começaram as suas operações, deve saber como fazer estas estimativas para o seu produto ou serviço. Abaixo, encontram-se algumas diretrizes para estimativas:
B6: Receitas: Comece por determinar a partir do seu mercado alvo (o grupo de potenciais clientes, empresas ou consumidores) quantos dos seguintes pontos serão um objetivo para o primeiro ano. Qual é a percentagem destes que espera fechar? O que é que constitui uma transação média para que adquiram o seu produto ou serviço? Quantas consegue fazer no primeiro mês, no segundo e daí em diante? Poderá querer começar com um número no primeiro mês e aumentá-lo por uma percentagem, por exemplo 10%. Por exemplo, se vender serviços de limpeza a pequenas empresas na sua cidade e existirem 500 empresas que pensa precisarem desse serviço. Se o contrato médio for the 250 €/mês, precisa de fazer uma estimativa sobre com quantas empresas consegue assinar um contrato em cada mês, durante o primeiro ano.
B7: Custo dos Materiais Vendidos (CMV): Deve ser calculado para os produtos e para alguns serviços. É o custo de produzir o produto. Por exemplo, se estiver a vender vestuário, o CMV será o preço que pagou para comprar esse vestuário ao fabricante. Se o vestuário for criado por si, será o custo dos materiais e da mão-de-obra ao fazê-lo. No caso de serviços, seria o custo direto de uma hora de trabalho faturável. Tudo o que se encontra abaixo do Lucro Bruto na Demonstração de Resultados Financeiros são custos fixos ou gerais para o negócio como um todo, como a renda, telefone ou mesmo o marketing.

Sheet Modelo de Custos de Arranque
B1: CUSTOS INICIAIS
B2: A Sua Cafetaria | C2: =TODAY() -> 2022-01-18
B4: ITENS DE CUSTO | C4: MESES | D4: CUSTO/MÊS | E4: CUSTO ÚNICO | F4: CUSTO TOTAL
B5: Publicidade/Marketing | F5: =(C5*D5)+IF(E5>0,E5,0) -> 0 €
B6: Salários dos Colaboradores | F6: =(C6*D6)+IF(E6>0,E6,0) -> 0 €
B7: Impostos e Benefícios dos Colaboradores na Folha de Pagamentos | F7: 0 €
B8: Renda/Pagamentos de Aluguer/Serviços Públicos | F8: 0 €
B9: Remessas/Envios | F9: 0 €
B10: ORÇAMENTO ESTIMADO INICIAL | F10: =SUBTOTAL(109,Arranque[CUSTO TOTAL]) -> 0

Sheet Exemplo de Custos de Arranque
B1: CUSTOS INICIAIS
B2: ='Modelo de Custos de Arranque'!B2 -> A Sua Cafetaria | C2: =TODAY() -> 2022-01-18
B4: ITENS DE CUSTO | C4: MESES | D4: CUSTO/MÊS | E4: CUSTO ÚNICO | F4: CUSTO TOTAL
B5: Publicidade/Marketing | C5: 3 | D5: 300 € | E5: 2,000 € | F5: =(C5*D5)+IF(E5>0,E5,0) -> 2,900 €
B6: Salários dos Colaboradores | C6: 4 | D6: 3,500 € | E6: 2 € | F6: =(C6*D6)+IF(E6>0,E6,0) -> 14,002 €
B7: Impostos e Benefícios dos Colaboradores na Folha de Pagamentos | C7: 4 | D7: 500 € | E7: 2,000 € | F7: 4,000 €
B8: Renda/Pagamentos de Aluguer/Serviços Públicos | C8: 4 | D8: 750 € | E8: 3,000 € | F8: 6,000 €
B9: Remessas/Envios | C9: 1 | D9: 25 € | E9: 25 € | F9: 50 €
B10: ORÇAMENTO ESTIMADO INICIAL | F10: =SUM(F6:F9) -> 24,052 €

Sheet Modelo de Demonstração
B1: CUSTOS INICIAIS
B2: ='Modelo de Custos de Arranque'!B2 -> A Sua Cafetaria | C2: =TODAY() -> 2022-01-18
B4: RECEITAS | C4: JAN | D4: FEV | E4: MAR | F4: ABR | G4: MAI | H4: JUN | I4: JUL | J4: AGO | K4: SET | L4: OUT | M4: NOV | N4: DEZ | O4: Desde o Início do Ano
B5: Vendas Estimadas de Produtos | C5: 0 € | D5: 0 € | E5: 0 € | F5: 0 € | G5: 0 € | H5: 0 € | I5: 0 € | J5: 0 € | K5: 0 € | L5: 0 € | M5: 0 € | N5: 0 € | O5: =SUM(C5:N5) -> 0 €
B6: Menos Devoluções e Descontos | C6: 0 € | D6: 0 € | E6: 0 € | F6: 0 € | G6: 0 € | H6: 0 € | I6: 0 € | J6: 0 € | K6: 0 € | L6: 0 € | M6: 0 € | N6: 0 € | O6: =SUM(C6:N6) -> 0 €
B7: Receita de Serviços | C7: 0 € | D7: 0 € | E7: 0 € | F7: 0 € | G7: 0 € | H7: 0 € | I7: 0 € | J7: 0 € | K7: 0 € | L7: 0 € | M7: 0 € | N7: 0 € | O7: 0 €
B8: Outras Receitas | C8: 0 € | D8: 0 € | E8: 0 € | F8: 0 € | G8: 0 € | H8: 0 € | I8: 0 € | J8: 0 € | K8: 0 € | L8: 0 € | M8: 0 € | N8: 0 € | O8: 0 €
B9: Vendas Líquidas | C9: =SUBTOTAL(109,ReceitaDeExemplo[JAN]) -> 0 € | D9: =SUBTOTAL(109,ReceitaDeExemplo[FEV]) -> 0 € | E9: =SUBTOTAL(109,ReceitaDeExemplo[MAR]) -> 0 € | F9: =SUBTOTAL(109,ReceitaDeExemplo[ABR]) -> 0 € | G9: =SUBTOTAL(109,ReceitaDeExemplo[MAI]) -> 0 € | H9: =SUBTOTAL(109,ReceitaDeExemplo[JUN]) -> 0 € | I9: =SUBTOTAL(109,ReceitaDeExemplo[JUL]) -> 0 € | J9: =SUBTOTAL(109,ReceitaDeExemplo[AGO]) -> 0 € | K9: =SUBTOTAL(109,ReceitaDeExemplo[SET]) -> 0 € | L9: =SUBTOTAL(109,ReceitaDeExemplo[OUT]) -> 0 € | M9: =SUBTOTAL(109,ReceitaDeExemplo[NOV]) -> 0 € | N9: =SUBTOTAL(109,ReceitaDeExemplo[DEZ]) -> 0 € | O9: =SUM(ReceitaDeExemplo[[#Totals],[JAN]:[DEZ]]) -> 0 €
B10: Custo de Produtos Vendidos | C10: =C5*0.4 -> 0 € | D10: 0 € | E10: 0 € | F10: 0 € | G10: 0 € | H10: 0 € | I10: 0 € | J10: 0 € | K10: 0 € | L10: 0 € | M10: 0 € | N10: 0 € | O10: 0 €
B11: Lucro Bruto | C11: =IFERROR(ReceitaDeExemplo[[#Totals],[JAN]]-C10,"") -> 0 € | D11: =IFERROR(ReceitaDeExemplo[[#Totals],[FEV]]-D10,"") -> 0 € | E11: =IFERROR(ReceitaDeExemplo[[#Totals],[MAR]]-E10,"") -> 0 € | F11: =IFERROR(ReceitaDeExemplo[[#Totals],[ABR]]-F10,"") -> 0 € | G11: =IFERROR(ReceitaDeExemplo[[#Totals],[MAI]]-G10,"") -> 0 € | H11: =IFERROR(ReceitaDeExemplo[[#Totals],[JUN]]-H10,"") -> 0 € | I11: =IFERROR(ReceitaDeExemplo[[#Totals],[JUL]]-I10,"") -> 0 € | J11: =IFERROR(ReceitaDeExemplo[[#Totals],[AGO]]-J10,"") -> 0 € | K11: =IFERROR(ReceitaDeExemplo[[#Totals],[SET]]-K10,"") -> 0 € | L11: =IFERROR(ReceitaDeExemplo[[#Totals],[OUT]]-L10,"") -> 0 € | M11: =IFERROR(ReceitaDeExemplo[[#Totals],[NOV]]-M10,"") -> 0 € | N11: =IFERROR(ReceitaDeExemplo[[#Totals],[DEZ]]-N10,"") -> 0 € | O11: 0 €
B13: DESPESAS | C13: JAN | D13: FEV | E13: MAR | F13: ABR | G13: MAI | H13: JUN | I13: JUL | J13: AGO | K13: SET | L13: OUT | M13: NOV | N13: DEZ | O13: Desde o Início do Ano
B14: Salários e Ordenados | C14: 0 € | D14: 0 € | E14: 0 € | F14: 0 € | G14: 0 € | H14: 0 € | I14: 0 € | J14: 0 € | K14: 0 € | L14: 0 € | M14: 0 € | N14: 0 € | O14: =SUM(C14:N14) -> 0 €
B15: Marketing/Publicidade | C15: 0 € | D15: 0 € | E15: 0 € | F15: 0 € | G15: 0 € | H15: 0 € | I15: 0 € | J15: 0 € | K15: 0 € | L15: 0 € | M15: 0 € | N15: 0 € | O15: =SUM(C15:N15) -> 0 €
B16: Comissões de Vendas | C16: 0 € | D16: 0 € | E16: 0 € | F16: 0 € | G16: 0 € | H16: 0 € | I16: 0 € | J16: 0 € | K16: 0 € | L16: 0 € | M16: 0 € | N16: 0 € | O16: 0 €
B17: Renda | C17: 0 € | D17: 0 € | E17: 0 € | F17: 0 € | G17: 0 € | H17: 0 € | I17: 0 € | J17: 0 € | K17: 0 € | L17: 0 € | M17: 0 € | N17: 0 € | O17: 0 €
B18: Outro 1 | C18: 0 € | D18: 0 € | E18: 0 € | F18: 0 € | G18: 0 € | H18: 0 € | I18: 0 € | J18: 0 € | K18: 0 € | L18: 0 € | M18: 0 € | N18: 0 € | O18: 0 €
B19: Despesas Totais | C19: =IF(SUM(C14:C18)=0,"",SUM(C14:C18)) ->  | O19: =SUM(DespesasDeExemplo[[#Totals],[JAN]:[DEZ]]) -> 0 €
B20: Rendimentos Antes dos Impostos | C20: =IFERROR('Modelo de Demonstração'!$C$11-DespesasDeExemplo[[#Totals],[JAN]],"") ->  | D20: =IFERROR('Modelo de Demonstração'!$C$11-DespesasDeExemplo[[#Totals],[FEV]],"") ->  | E20: =IFERROR('Modelo de Demonstração'!$C$11-DespesasDeExemplo[[#Totals],[MAR]],"") ->  | F20: =IFERROR('Modelo de Demonstração'!$C$11-DespesasDeExemplo[[#Totals],[ABR]],"") ->  | G20: =IFERROR('Modelo de Demonstração'!$C$11-DespesasDeExemplo[[#Totals],[MAI]],"") ->  | H20: =IFERROR('Modelo de Demonstração'!$C$11-DespesasDeExemplo[[#Totals],[JUN]],"") ->  | I20: =IFERROR('Modelo de Demonstração'!$C$11-DespesasDeExemplo[[#Totals],[JUL]],"") ->  | J20: =IFERROR('Modelo de Demonstração'!$C$11-DespesasDeExemplo[[#Totals],[AGO]],"") ->  | K20: =IFERROR('Modelo de Demonstração'!$C$11-DespesasDeExemplo[[#Totals],[SET]],"") ->  | L20: =IFERROR('Modelo de Demonstração'!$C$11-DespesasDeExemplo[[#Totals],[OUT]],"") ->  | M20: =IFERROR('Modelo de Demonstração'!$C$11-DespesasDeExemplo[[#Totals],[NOV]],"") ->  | N20: =IFERROR('Modelo de Demonstração'!$C$11-DespesasDeExemplo[[#Totals],[DEZ]],"") ->  | O20: 0 €
B21: Despesas com Impostos sobre o Rendimento | C21: =IFERROR(C20*0.15," ") ->  | D21: =IFERROR(D20*0.15," ") ->  | E21: =IFERROR(E20*0.15," ") ->  | O21: =SUM('Modelo de Demonstração'!$C$21:$N$21) -> 0 €
B23: RESULTADOS LÍQUIDOS | C23: =IFERROR(C20-'Modelo de Demonstração'!$C$21,"") ->  | D23: =IFERROR(D20-'Modelo de Demonstração'!$D$21,"") ->  | E23: =IFERROR(E20-'Modelo de Demonstração'!$E$21,"") ->  | F23: =IFERROR(F20-'Modelo de Demonstração'!$F$21,"") ->  | G23: =IFERROR(G20-'Modelo de Demonstração'!$G$21,"") ->  | H23: =IFERROR(H20-'Modelo de Demonstração'!$H$21,"") ->  | I23: =IFERROR(I20-'Modelo de Demonstração'!$I$21,"") ->  | J23: =IFERROR(J20-'Modelo de Demonstração'!$J$21,"") ->  | K23: =IFERROR(K20-'Modelo de Demonstração'!$K$21,"") ->  | L23: =IFERROR(L20-'Modelo de Demonstração'!$L$21,"") ->  | M23: =IFERROR(M20-'Modelo de Demonstração'!$M$21,"") ->  | N23: =IFERROR(N20-'Modelo de Demonstração'!$N$21,"") ->  | O23: =IFERROR(O20-'Modelo de Demonstração'!$O$21,"") -> 0 €

Sheet Exemplo de Demonstração
B1: CUSTOS INICIAIS
B2: ='Modelo de Custos de Arranque'!B2 -> A Sua Cafetaria | C2: =TODAY() -> 2022-01-18
B4: RECEITAS | C4: JAN | D4: FEV | E4: MAR | F4: ABR | G4: MAI | H4: JUN | I4: JUL | J4: AGO | K4: SET | L4: OUT | M4: NOV | N4: DEZ | O4: Desde o Início do Ano
B5: Vendas Estimadas de Produtos | C5: 5,000 € | D5: 13,000 € | E5: 16,000 € | F5: 7,000 € | G5: 14,500 € | H5: 16,400 € | I5: 22,500 € | J5: 23,125 € | K5: 24,549 € | L5: 22,000 € | M5: 25,000 € | N5: 27,349 € | O5: =SUM(C5:N5) -> 216,423 €
B6: Menos Devoluções e Descontos | C6: 0 € | D6: -350 € | E6: 0 € | F6: -206 € | G6: -234 € | H6: 0 € | I6: 0 € | J6: -280 € | K6: -1,200 € | L6: -1,600 € | M6: 0 € | N6: -2,400 € | O6: =SUM(C6:N6) -> -6,270 €
B7: Receita de Serviços | C7: 0 € | D7: 0 € | E7: 0 € | F7: 0 € | G7: 0 € | H7: 250 € | I7: 350 € | J7: 100 € | K7: 0 € | L7: 0 € | M7: 1,245 € | N7: 1,360 € | O7: 3,305 €
B8: Outras Receitas | C8: 0 € | D8: 0 € | E8: 0 € | F8: 0 € | G8: 0 € | H8: 0 € | I8: 0 € | J8: 1,500 € | K8: 0 € | L8: 0 € | M8: 0 € | N8: 0 € | O8: 1,500 €
B9: Vendas Líquidas | C9: =SUBTOTAL(109,ReceitaReal[JAN]) -> 5,000 € | D9: =SUBTOTAL(109,ReceitaReal[FEV]) -> 12,650 € | E9: =SUBTOTAL(109,ReceitaReal[MAR]) -> 16,000 € | F9: =SUBTOTAL(109,ReceitaReal[ABR]) -> 6,794 € | G9: =SUBTOTAL(109,ReceitaReal[MAI]) -> 14,266 € | H9: =SUBTOTAL(109,ReceitaReal[JUN]) -> 16,650 € | I9: =SUBTOTAL(109,ReceitaReal[JUL]) -> 22,850 € | J9: =SUBTOTAL(109,ReceitaReal[AGO]) -> 24,445 € | K9: =SUBTOTAL(109,ReceitaReal[SET]) -> 23,349 € | L9: =SUBTOTAL(109,ReceitaReal[OUT]) -> 20,400 € | M9: =SUBTOTAL(109,ReceitaReal[NOV]) -> 26,245 € | N9: =SUBTOTAL(109,ReceitaReal[DEZ]) -> 26,309 € | O9: =SUM(ReceitaReal[[#Totals],[JAN]:[DEZ]]) -> 214,958 €
B10: Custo de Produtos Vendidos | C10: =C5*0.4 -> 2,000 € | D10: 5,200 € | E10: 6,400 € | F10: 2,800 € | G10: 5,800 € | H10: 6,560 € | I10: 9,000 € | J10: 9,250 € | K10: 9,820 € | L10: 8,800 € | M10: 10,000 € | N10: 10,940 € | O10: 86,569 €
B11: Lucro Bruto | C11: =IFERROR(ReceitaReal[[#Totals],[JAN]]-C10,"") -> 3,000 € | D11: =IFERROR(ReceitaReal[[#Totals],[FEV]]-D10,"") -> 7,450 € | E11: =IFERROR(ReceitaReal[[#Totals],[MAR]]-E10,"") -> 9,600 € | F11: =IFERROR(ReceitaReal[[#Totals],[ABR]]-F10,"") -> 3,994 € | G11: =IFERROR(ReceitaReal[[#Totals],[MAI]]-G10,"") -> 8,466 € | H11: =IFERROR(ReceitaReal[[#Totals],[JUN]]-H10,"") -> 10,090 € | I11: =IFERROR(ReceitaReal[[#Totals],[JUL]]-I10,"") -> 13,850 € | J11: =IFERROR(ReceitaReal[[#Totals],[AGO]]-J10,"") -> 15,195 € | K11: =IFERROR(ReceitaReal[[#Totals],[SET]]-K10,"") -> 13,529 € | L11: =IFERROR(ReceitaReal[[#Totals],[OUT]]-L10,"") -> 11,600 € | M11: =IFERROR(ReceitaReal[[#Totals],[NOV]]-M10,"") -> 16,245 € | N11: =IFERROR(ReceitaReal[[#Totals],[DEZ]]-N10,"") -> 15,369 € | O11: 128,389 €
B13: DESPESAS | C13: JAN | D13: FEV | E13: MAR | F13: ABR | G13: MAI | H13: JUN | I13: JUL | J13: AGO | K13: SET | L13: OUT | M13: NOV | N13: DEZ | O13: Desde o Início do Ano
B14: Salários e Ordenados | C14: 2,500 € | D14: 2,500 € | E14: 3,500 € | F14: 5,000 € | G14: 5,000 € | H14: 5,000 € | I14: 8,000 € | J14: 9,000 € | K14: 9,000 € | L14: 9,000 € | M14: 9,000 € | N14: 9,000 € | O14: =SUM(C14:N14) -> 76,500 €
B15: Marketing/Publicidade | C15: 400 € | D15: 450 € | E15: 450 € | F15: 450 € | G15: 900 € | H15: 900 € | I15: 900 € | J15: 900 € | K15: 900 € | L15: 900 € | M15: 1,200 € | N15: 1,200 € | O15: =SUM(C15:N15) -> 9,550 €
B16: Comissões de Vendas | C16: 250 € | D16: 650 € | E16: 800 € | F16: 350 € | G16: 725 € | H16: 820 € | I16: 1,125 € | J16: 1,156 € | K16: 1,227 € | L16: 1,100 € | M16: 1,250 € | N16: 1,367 € | O16: 10,821 €
B17: Renda | C17: 1,250 € | D17: 1,250 € | E17: 1,250 € | F17: 1,250 € | G17: 1,250 € | H17: 1,250 € | I17: 1,250 € | J17: 1,250 € | K17: 1,250 € | L17: 1,250 € | M17: 1,250 € | N17: 1,250 € | O17: 15,000 €
B18: Despesas Totais | C18: =IF(SUM(C14:C17)=0,"",SUM(C14:C17)) -> 4,400 € | D18: 4,850 € | E18: 6,000 € | F18: 7,050 € | G18: 7,875 € | H18: 7,970 € | I18: 11,275 € | J18: 12,306 € | K18: 12,377 € | L18: 12,250 € | M18: 12,700 € | N18: 12,817 € | O18: =SUM(DespesasReais[[#Totals],[JAN]:[DEZ]]) -> 111,871 €
B19: Rendimentos Antes dos Impostos | C19: =IFERROR('Exemplo de Demonstração'!$C$11-DespesasReais[[#Totals],[JAN]],"") -> -1,400 € | D19: =IFERROR('Exemplo de Demonstração'!$D$11-DespesasReais[[#Totals],[FEV]],"") -> 2,600 € | E19: =IFERROR('Exemplo de Demonstração'!$E$11-DespesasReais[[#Totals],[MAR]],"") -> 3,600 € | F19: =IFERROR('Exemplo de Demonstração'!$F$11-DespesasReais[[#Totals],[ABR]],"") -> -3,056 € | G19: =IFERROR('Exemplo de Demonstração'!$G$11-DespesasReais[[#Totals],[MAI]],"") -> 591 € | H19: =IFERROR('Exemplo de Demonstração'!$H$11-DespesasReais[[#Totals],[JUN]],"") -> 2,120 € | I19: =IFERROR('Exemplo de Demonstração'!$I$11-DespesasReais[[#Totals],[JUL]],"") -> 2,575 € | J19: =IFERROR('Exemplo de Demonstração'!$J$11-DespesasReais[[#Totals],[AGO]],"") -> 2,889 € | K19: =IFERROR('Exemplo de Demonstração'!$K$11-DespesasReais[[#Totals],[SET]],"") -> 1,152 € | L19: =IFERROR('Exemplo de Demonstração'!$L$11-DespesasReais[[#Totals],[OUT]],"") -> -650 € | M19: =IFERROR('Exemplo de Demonstração'!$M$11-DespesasReais[[#Totals],[NOV]],"") -> 3,545 € | N19: =IFERROR('Exemplo de Demonstração'!$N$11-DespesasReais[[#Totals],[DEZ]],"") -> 2,552 € | O19: =SUM(C19:N19) -> 16,518 €
B20: Despesas com Impostos sobre o Rendimento | C20: =C19*0.15 -> -210 € | D20: 390 € | E20: =E19*0.15 -> 540 € | F20: =F19*0.15 -> -458 € | G20: =G19*0.15 -> 89 € | H20: =H19*0.15 -> 318 € | I20: =I19*0.15 -> 386 € | J20: =J19*0.15 -> 433 € | K20: =K19*0.15 -> 173 € | L20: =L19*0.15 -> -98 € | M20: =M19*0.15 -> 532 € | N20: =N19*0.15 -> 383 € | O20: =SUM('Exemplo de Demonstração'!$C$20:$N$20) -> 2,478 €
B22: RESULTADOS LÍQUIDOS | C22: =IFERROR(C19-'Exemplo de Demonstração'!$C$20," ") -> -1,190 € | D22: =IFERROR(D19-'Exemplo de Demonstração'!$D$20," ") -> 2,210 € | E22: =IFERROR(E19-'Exemplo de Demonstração'!$E$20,"") -> 3,060 € | F22: =IFERROR(F19-'Exemplo de Demonstração'!$F$20,"") -> -2,598 € | G22: =IFERROR(G19-'Exemplo de Demonstração'!$G$20,"") -> 502 € | H22: =IFERROR(H19-'Exemplo de Demonstração'!$H$20,"") -> 1,802 € | I22: =IFERROR(I19-'Exemplo de Demonstração'!$I$20,"") -> 2,189 € | J22: =IFERROR(J19-'Exemplo de Demonstração'!$J$20,"") -> 2,455 € | K22: =IFERROR(K19-'Exemplo de Demonstração'!$K$20,"") -> 979 € | L22: =IFERROR(L19-'Exemplo de Demonstração'!$L$20,"") -> -553 € | M22: =IFERROR(M19-'Exemplo de Demonstração'!$M$20,"") -> 3,013 € | N22: =IFERROR(N19-'Exemplo de Demonstração'!$N$20,"") -> 2,169 € | O22: =IFERROR(O19-'Exemplo de Demonstração'!$O$20,"") -> 14,040 €
